[Event "*** Titled Tuesday Blitz"]
[Site "Chess.com"]
[Date "2021.02.09"]
[Round "2"]
[White "klimkoj"]
[Black "AniJak"]
[Result "0-1"]
[WhiteElo "2561"]
[BlackElo "2321"]
[TimeControl "180+1"]
[EndTime "10:18:58 PST"]
[Termination "AniJak won on time"]

1. d4 {[%clk 0:03:00.9]} 1... d5 {[%clk 0:02:57.8]} 2. Bf4 {[%clk 0:03:00.2]}
2... Nf6 {[%clk 0:02:56.3]} 3. e3 {[%clk 0:02:43.1]} 3... e6 {[%clk 0:02:56.3]}
4. Nf3 {[%clk 0:02:39.6]} 4... Bd6 {[%clk 0:02:56.5]} 5. Bd3 {[%clk 0:02:37.2]}
5... Bxf4 {[%clk 0:02:55.3]} 6. exf4 {[%clk 0:02:36.6]} 6... Ne4 {[%clk
0:02:51.4]} 7. O-O {[%clk 0:02:36.1]} 7... f5 {[%clk 0:02:45.7]} 8. Ne5 {[%clk
0:02:32.7]} 8... O-O {[%clk 0:02:45.2]} 9. c3 {[%clk 0:02:29.4]} 9... Nd7 {[%clk
0:02:41]} 10. f3 {[%clk 0:02:23.6]} 10... Nxe5 {[%clk 0:02:37.8]} 11. fxe5
{[%clk 0:02:22]} 11... Ng5 {[%clk 0:02:36.4]} 12. Na3 {[%clk 0:02:20]} 12... Bd7
{[%clk 0:02:30.5]} 13. Nc2 {[%clk 0:02:15.3]} 13... h6 {[%clk 0:02:24.2]} 14.
Qd2 {[%clk 0:02:04.9]} 14... Qe8 {[%clk 0:02:21]} 15. h4 {[%clk 0:01:41.1]}
15... Nh7 {[%clk 0:02:10.6]} 16. f4 {[%clk 0:01:39.2]} 16... Qh5 {[%clk
0:02:07.5]} 17. g3 {[%clk 0:01:38.8]} 17... g5 {[%clk 0:01:58.4]} 18. hxg5
{[%clk 0:01:33.5]} 18... hxg5 {[%clk 0:01:58.3]} 19. Qh2 {[%clk 0:01:32.5]}
19... Qxh2+ {[%clk 0:01:44.3]} 20. Kxh2 {[%clk 0:01:33.4]} 20... Kg7 {[%clk
0:01:41.3]} 21. Kg2 {[%clk 0:01:30.7]} 21... Rh8 {[%clk 0:01:32.5]} 22. Ne3
{[%clk 0:01:11]} 22... Rag8 {[%clk 0:01:28.3]} 23. Kf2 {[%clk 0:00:58.7]} 23...
gxf4 {[%clk 0:01:24.1]} 24. gxf4 {[%clk 0:00:56]} 24... Nf8 {[%clk 0:01:24.6]}
25. Rh1 {[%clk 0:00:51.7]} 25... Ng6 {[%clk 0:01:23.7]} 26. Ng2 {[%clk
0:00:51.3]} 26... Be8 {[%clk 0:01:22.2]} 27. a4 {[%clk 0:00:36.2]} 27... Kf8
{[%clk 0:01:16.3]} 28. a5 {[%clk 0:00:35.3]} 28... a6 {[%clk 0:01:06.9]} 29. b4
{[%clk 0:00:30.9]} 29... c6 {[%clk 0:01:04.1]} 30. Be2 {[%clk 0:00:23.4]} 30...
Bf7 {[%clk 0:00:55.8]} 31. Bh5 {[%clk 0:00:18.2]} 31... Ne7 {[%clk 0:00:55.8]}
32. Bf3 {[%clk 0:00:17.4]} 32... Ng6 {[%clk 0:00:55.9]} 33. Ke3 {[%clk 0:00:15]}
33... Ne7 {[%clk 0:00:54.4]} 34. Kf2 {[%clk 0:00:14.6]} 34... Ng6 {[%clk
0:00:54.5]} 35. Rag1 {[%clk 0:00:12.1]} 35... Be8 {[%clk 0:00:51.3]} 36. Rxh8
{[%clk 0:00:11.7]} 36... Rxh8 {[%clk 0:00:50.5]} 37. Kg3 {[%clk 0:00:10.9]}
37... Bf7 {[%clk 0:00:46.9]} 38. Ne1 {[%clk 0:00:10.6]} 38... Rg8 {[%clk
0:00:43.6]} 39. Ng2 {[%clk 0:00:07.9]} 39... Nxe5+ {[%clk 0:00:40.6]} 40. Kf2
{[%clk 0:00:08]} 40... Nd3+ {[%clk 0:00:25]} 41. Ke3 {[%clk 0:00:06]} 41... Nb2
{[%clk 0:00:21.8]} 42. Be2 {[%clk 0:00:06.4]} 42... Rg3+ {[%clk 0:00:18.3]} 43.
Kd2 {[%clk 0:00:03.5]} 43... Nc4+ {[%clk 0:00:18.3]} 44. Bxc4 {[%clk 0:00:03.5]}
44... dxc4 {[%clk 0:00:19.2]} 45. Ke2 {[%clk 0:00:01.4]} 45... Bh5+ {[%clk
0:00:19]} 46. Kf2 {[%clk 0:00:01.4]} 46... Rxc3 {[%clk 0:00:18.9]} 47. Ne3
{[%clk 0:00:02.3]} 47... Bf7 {[%clk 0:00:13.7]} 48. Ke2 {[%clk 0:00:01.2]} 48...
Rd3 {[%clk 0:00:13.4]} 0-1

[Event "*** Titled Tuesday Blitz"]
[Site "Chess.com"]
[Date "2021.02.09"]
[Round "2"]
[White "BilodeauA"]
[Black "szachuspl"]
[Result "1-0"]
[WhiteElo "2889"]
[BlackElo "2544"]
[TimeControl "180+1"]
[EndTime "10:18:59 PST"]
[Termination "BilodeauA won by resignation"]

1. d4 {[%clk 0:03:00.9]} 1... Nf6 {[%clk 0:02:56]} 2. Nc3 {[%clk 0:03:00.8]}
2... d5 {[%clk 0:02:55.2]} 3. Bf4 {[%clk 0:03:00.2]} 3... Bf5 {[%clk 0:02:50.1]}
4. f3 {[%clk 0:02:59.2]} 4... e6 {[%clk 0:02:43.8]} 5. g4 {[%clk 0:02:58.8]}
5... Bg6 {[%clk 0:02:43.6]} 6. h4 {[%clk 0:02:59.5]} 6... h5 {[%clk 0:02:43.1]}
7. g5 {[%clk 0:02:59.6]} 7... Nfd7 {[%clk 0:02:38.8]} 8. e3 {[%clk 0:03:00.1]}
8... Bd6 {[%clk 0:02:37.4]} 9. Nh3 {[%clk 0:02:58.8]} 9... O-O {[%clk
0:02:36.1]} 10. Bd3 {[%clk 0:02:59]} 10... Bxd3 {[%clk 0:02:34.6]} 11. Qxd3
{[%clk 0:02:59]} 11... g6 {[%clk 0:02:34.9]} 12. O-O-O {[%clk 0:02:57.5]} 12...
Nc6 {[%clk 0:02:31.8]} 13. Kb1 {[%clk 0:02:48.9]} 13... Ne7 {[%clk 0:02:29.5]}
14. e4 {[%clk 0:02:47.4]} 14... Bxf4 {[%clk 0:02:28.5]} 15. Nxf4 {[%clk
0:02:42.3]} 15... c6 {[%clk 0:02:28.7]} 16. Nce2 {[%clk 0:02:30.4]} 16... Qc7
{[%clk 0:02:28.2]} 17. Qe3 {[%clk 0:02:29.3]} 17... Rfe8 {[%clk 0:02:16.7]} 18.
Ng3 {[%clk 0:02:28.7]} 18... Nf8 {[%clk 0:02:16.7]} 19. Nfxh5 {[%clk 0:02:23.8]}
19... gxh5 {[%clk 0:02:15.8]} 20. Nxh5 {[%clk 0:02:24.7]} 20... Nh7 {[%clk
0:02:08]} 21. Nf6+ {[%clk 0:02:23.4]} 21... Kh8 {[%clk 0:02:01.8]} 22. Nxe8
{[%clk 0:02:22.5]} 22... Rxe8 {[%clk 0:02:01.3]} 23. h5 {[%clk 0:02:23.3]} 23...
Rg8 {[%clk 0:01:46]} 24. g6 {[%clk 0:02:16.3]} 24... fxg6 {[%clk 0:01:46.2]} 25.
hxg6 {[%clk 0:02:17.2]} 25... Nxg6 {[%clk 0:01:46.3]} 26. Rh6 {[%clk 0:02:02.3]}
26... Qf4 {[%clk 0:01:41.9]} 27. Rdh1 {[%clk 0:01:57.2]} 27... Rg7 {[%clk
0:01:36.1]} 28. Qe1 {[%clk 0:01:20.7]} 28... Kg8 {[%clk 0:01:30.2]} 29. exd5
{[%clk 0:01:18.7]} 29... Nhf8 {[%clk 0:01:07.8]} 30. dxe6 {[%clk 0:01:15.1]}
30... Qf6 {[%clk 0:01:06.3]} 31. a3 {[%clk 0:00:48.8]} 31... Nxe6 {[%clk
0:01:02.4]} 32. Qa5 {[%clk 0:00:49.3]} 32... a6 {[%clk 0:01:01.5]} 33. d5 {[%clk
0:00:45.3]} 33... cxd5 {[%clk 0:00:55.8]} 34. Qxd5 {[%clk 0:00:44.8]} 34... Qf7
{[%clk 0:00:55.8]} 35. f4 {[%clk 0:00:38.1]} 35... Nef8 {[%clk 0:00:44.3]} 36.
Qd4 {[%clk 0:00:32.7]} 36... Qxf4 {[%clk 0:00:28.6]} 37. Rh8+ {[%clk 0:00:31.5]}
37... Kf7 {[%clk 0:00:28.5]} 38. Qd5+ {[%clk 0:00:30.9]} 38... Kf6 {[%clk
0:00:24.9]} 39. R8h2 {[%clk 0:00:22.4]} 39... Qe5 {[%clk 0:00:15.1]} 40. Rf2+
{[%clk 0:00:21.1]} 40... Ke7 {[%clk 0:00:15.2]} 41. Qxb7+ {[%clk 0:00:21.5]}
41... Ke8 {[%clk 0:00:13.2]} 42. Qa8+ {[%clk 0:00:20.7]} 42... Ke7 {[%clk
0:00:12.3]} 43. Qxa6 {[%clk 0:00:21.5]} 43... Ne6 {[%clk 0:00:11.3]} 44. Re2
{[%clk 0:00:21.6]} 44... Qd6 {[%clk 0:00:10.8]} 45. Qa7+ {[%clk 0:00:20.8]}
45... Kf8 {[%clk 0:00:10.3]} 46. Rf1+ {[%clk 0:00:20.3]} 46... Kg8 {[%clk
0:00:10.3]} 47. Qa8+ {[%clk 0:00:21]} 47... Ngf8 {[%clk 0:00:10.5]} 48. Qf3
{[%clk 0:00:20.9]} 48... Rg6 {[%clk 0:00:09.2]} 49. Qe4 {[%clk 0:00:19.5]} 49...
Rg7 {[%clk 0:00:09]} 50. Rfe1 {[%clk 0:00:20.1]} 50... Ng5 {[%clk 0:00:08.3]}
51. Qc4+ {[%clk 0:00:20.7]} 51... Nf7 {[%clk 0:00:07]} 52. Rf2 {[%clk
0:00:20.7]} 52... Qg6 {[%clk 0:00:06.8]} 53. Ref1 {[%clk 0:00:20.8]} 53... Ne6
{[%clk 0:00:07.2]} 54. Rf6 {[%clk 0:00:21.1]} 54... Qh5 {[%clk 0:00:06.1]} 55.
Qxe6 {[%clk 0:00:19.8]} 1-0

[Event "*** Titled Tuesday Blitz"]
[Site "Chess.com"]
[Date "2021.02.09"]
[Round "2"]
[White "queen_iryna"]
[Black "QuintilianoR"]
[Result "1-0"]
[WhiteElo "2344"]
[BlackElo "2679"]
[TimeControl "180+1"]
[EndTime "10:18:59 PST"]
[Termination "queen_iryna won on time"]

1. e4 {[%clk 0:03:00.9]} 1... e6 {[%clk 0:02:59.7]} 2. d4 {[%clk 0:02:58.6]}
2... d5 {[%clk 0:02:59.6]} 3. Nc3 {[%clk 0:02:59.2]} 3... Nf6 {[%clk 0:02:58.7]}
4. Bg5 {[%clk 0:02:58.1]} 4... dxe4 {[%clk 0:02:58.9]} 5. Nxe4 {[%clk
0:02:57.7]} 5... Be7 {[%clk 0:02:59.5]} 6. Bxf6 {[%clk 0:02:57.3]} 6... Bxf6
{[%clk 0:03:00.4]} 7. Nf3 {[%clk 0:02:56.9]} 7... O-O {[%clk 0:02:57.6]} 8. c3
{[%clk 0:02:57.1]} 8... Nd7 {[%clk 0:02:52.7]} 9. Bd3 {[%clk 0:02:56]} 9... Be7
{[%clk 0:02:53]} 10. Qc2 {[%clk 0:02:55.5]} 10... h6 {[%clk 0:02:49.1]} 11. h4
{[%clk 0:02:54.5]} 11... c5 {[%clk 0:02:47.8]} 12. Neg5 {[%clk 0:02:53.6]} 12...
Nf6 {[%clk 0:00:45.6]} 13. Ne5 {[%clk 0:02:42]} 13... Qe8 {[%clk 0:00:39.1]} 14.
Bh7+ {[%clk 0:02:30.9]} 14... Kh8 {[%clk 0:00:37.8]} 15. Ngxf7+ {[%clk
0:02:27.3]} 15... Rxf7 {[%clk 0:00:34.4]} 16. Bg6 {[%clk 0:02:27.4]} 16... Kg8
{[%clk 0:00:33.3]} 17. Bxf7+ {[%clk 0:02:21.9]} 17... Qxf7 {[%clk 0:00:33.1]}
18. Nxf7 {[%clk 0:02:22]} 18... Kxf7 {[%clk 0:00:34]} 19. f3 {[%clk 0:02:14.8]}
19... cxd4 {[%clk 0:00:33.5]} 20. cxd4 {[%clk 0:02:13]} 20... Bd7 {[%clk
0:00:33.5]} 21. h5 {[%clk 0:02:02.5]} 21... Rc8 {[%clk 0:00:31.1]} 22. Qg6+
{[%clk 0:02:02.2]} 22... Kf8 {[%clk 0:00:31.3]} 23. O-O {[%clk 0:01:59.9]} 23...
Be8 {[%clk 0:00:29.1]} 24. Qd3 {[%clk 0:01:57.7]} 24... Bxh5 {[%clk 0:00:24.3]}
25. Rac1 {[%clk 0:01:56.2]} 25... Rd8 {[%clk 0:00:24.5]} 26. Rfe1 {[%clk
0:01:48.5]} 26... Nd5 {[%clk 0:00:15.9]} 27. Rxe6 {[%clk 0:01:44.7]} 27... Bf7
{[%clk 0:00:15.8]} 28. Re5 {[%clk 0:01:32.6]} 28... Bf6 {[%clk 0:00:15.3]} 29.
Rxd5 {[%clk 0:01:31.4]} 29... Bxd5 {[%clk 0:00:14.8]} 30. Kh1 {[%clk 0:01:25.9]}
30... Bc6 {[%clk 0:00:14.7]} 31. Re1 {[%clk 0:01:18]} 31... Rxd4 {[%clk
0:00:10.7]} 32. Qa3+ {[%clk 0:01:11.2]} 32... Kg8 {[%clk 0:00:10.7]} 33. Kg1
{[%clk 0:00:59.8]} 33... Rd2 {[%clk 0:00:09.5]} 34. Qb4 {[%clk 0:00:44.9]} 34...
Rxb2 {[%clk 0:00:07.6]} 35. Qc4+ {[%clk 0:00:42.8]} 35... Kh7 {[%clk 0:00:08.1]}
36. Qd3+ {[%clk 0:00:34.6]} 36... Kh8 {[%clk 0:00:08.3]} 37. Qc4 {[%clk
0:00:19.2]} 37... Rd2 {[%clk 0:00:06.2]} 38. Re2 {[%clk 0:00:17.8]} 38... Rd1+
{[%clk 0:00:06.1]} 39. Kh2 {[%clk 0:00:18.1]} 39... a6 {[%clk 0:00:06.8]} 40.
Qc2 {[%clk 0:00:16.4]} 40... Rd4 {[%clk 0:00:06]} 41. Kg1 {[%clk 0:00:15.2]}
41... Rd8 {[%clk 0:00:04.6]} 42. Kf2 {[%clk 0:00:15]} 42... Bh4+ {[%clk
0:00:04.2]} 43. g3 {[%clk 0:00:14.9]} 43... Bf6 {[%clk 0:00:05.1]} 44. Kg2
{[%clk 0:00:13.8]} 44... Rd5 {[%clk 0:00:04.5]} 45. Qb3 {[%clk 0:00:11.5]} 45...
Kh7 {[%clk 0:00:03.6]} 46. Qc2+ {[%clk 0:00:10.9]} 46... Kh8 {[%clk 0:00:03.4]}
47. Rd2 {[%clk 0:00:11.2]} 47... Rg5 {[%clk 0:00:02.5]} 48. Rd6 {[%clk
0:00:09.2]} 48... Rb5 {[%clk 0:00:02.5]} 49. Rxc6 {[%clk 0:00:08.7]} 49... b6
{[%clk 0:00:02.4]} 50. Rc8+ {[%clk 0:00:08.5]} 1-0

[Event "*** Titled Tuesday Blitz"]
[Site "Chess.com"]
[Date "2021.02.09"]
[Round "2"]
[White "lucachess49"]
[Black "Rodalquilar"]
[Result "0-1"]
[WhiteElo "2326"]
[BlackElo "2671"]
[TimeControl "180+1"]
[EndTime "10:18:59 PST"]
[Termination "Rodalquilar won by resignation"]

1. d4 {[%clk 0:03:00.9]} 1... d5 {[%clk 0:02:54.8]} 2. c4 {[%clk 0:03:01.2]}
2... e6 {[%clk 0:02:55.4]} 3. Nc3 {[%clk 0:03:01.1]} 3... a6 {[%clk 0:02:55.6]}
4. cxd5 {[%clk 0:02:42.6]} 4... exd5 {[%clk 0:02:56.5]} 5. Bf4 {[%clk 0:02:43]}
5... Nf6 {[%clk 0:02:56.2]} 6. e3 {[%clk 0:02:43]} 6... c5 {[%clk 0:02:56.7]} 7.
Nf3 {[%clk 0:02:40.6]} 7... c4 {[%clk 0:02:57.1]} 8. Be2 {[%clk 0:02:38.7]} 8...
b5 {[%clk 0:02:57.4]} 9. O-O {[%clk 0:02:37.4]} 9... Bb7 {[%clk 0:02:57.9]} 10.
h3 {[%clk 0:02:36.4]} 10... Be7 {[%clk 0:02:58.4]} 11. Ne5 {[%clk 0:02:25.9]}
11... O-O {[%clk 0:02:58.4]} 12. Qc2 {[%clk 0:01:58.2]} 12... Nbd7 {[%clk
0:02:58.6]} 13. Rad1 {[%clk 0:01:56.5]} 13... Re8 {[%clk 0:02:53.7]} 14. Bf3
{[%clk 0:01:55.5]} 14... Rc8 {[%clk 0:02:49.1]} 15. Rfe1 {[%clk 0:01:52.6]}
15... Nb6 {[%clk 0:02:47]} 16. a3 {[%clk 0:01:48.7]} 16... Bf8 {[%clk
0:02:45.1]} 17. Bg5 {[%clk 0:01:38.2]} 17... Be7 {[%clk 0:02:43.4]} 18. Qf5
{[%clk 0:01:36.3]} 18... Rc7 {[%clk 0:02:26.1]} 19. Bh5 {[%clk 0:01:16.6]} 19...
g6 {[%clk 0:01:51.8]} 20. Bxg6 {[%clk 0:00:55.2]} 20... hxg6 {[%clk 0:01:40.7]}
21. Nxg6 {[%clk 0:00:56.1]} 21... fxg6 {[%clk 0:01:26.9]} 22. Qxg6+ {[%clk
0:00:57]} 22... Kh8 {[%clk 0:01:27.1]} 23. e4 {[%clk 0:00:17.7]} 23... Rg8
{[%clk 0:01:26.6]} 24. Qh6+ {[%clk 0:00:16.6]} 24... Nh7 {[%clk 0:01:27.1]} 25.
Bf4 {[%clk 0:00:15.7]} 25... Rc6 {[%clk 0:01:19.5]} 26. Be5+ {[%clk 0:00:13.4]}
26... Bf6 {[%clk 0:01:20]} 27. Qf4 {[%clk 0:00:07.9]} 27... Bxe5 {[%clk
0:01:16.6]} 28. Qxe5+ {[%clk 0:00:06.9]} 28... Qf6 {[%clk 0:01:15.5]} 29. exd5
{[%clk 0:00:07.2]} 29... Qxe5 {[%clk 0:01:14.9]} 30. dxe5 {[%clk 0:00:08.1]}
30... Rcg6 {[%clk 0:01:15.1]} 31. g3 {[%clk 0:00:07.7]} 31... Ng5 {[%clk
0:01:15]} 32. Kg2 {[%clk 0:00:07.9]} 32... Ne6 {[%clk 0:01:08.3]} 33. Kh2 {[%clk
0:00:07]} 33... Rf8 {[%clk 0:01:01.1]} 34. f4 {[%clk 0:00:05.2]} 34... Nxf4
{[%clk 0:01:00.7]} 35. gxf4 {[%clk 0:00:06.1]} 35... Rxf4 {[%clk 0:01:01.3]} 36.
e6 {[%clk 0:00:04.3]} 36... Rf2+ {[%clk 0:00:59.8]} 37. Kh1 {[%clk 0:00:04.9]}
37... Rf8 {[%clk 0:00:27.4]} 38. e7 {[%clk 0:00:02.5]} 38... Re8 {[%clk
0:00:27.9]} 39. Kh2 {[%clk 0:00:02.6]} 39... Rd6 {[%clk 0:00:27.1]} 40. Ne4
{[%clk 0:00:02.2]} 40... Rxd5 {[%clk 0:00:25]} 41. Nf6 {[%clk 0:00:01.9]} 41...
Rxd1 {[%clk 0:00:25.1]} 42. Rxd1 {[%clk 0:00:01.4]} 42... Rxe7 {[%clk
0:00:25.6]} 43. Rd8+ {[%clk 0:00:01.8]} 43... Kg7 {[%clk 0:00:26.1]} 44. Nh5+
{[%clk 0:00:02.4]} 44... Kg6 {[%clk 0:00:25.6]} 45. Nf4+ {[%clk 0:00:01.4]}
45... Kf5 {[%clk 0:00:25.8]} 46. Nh5 {[%clk 0:00:01.1]} 46... Re2+ {[%clk
0:00:25.4]} 47. Kg1 {[%clk 0:00:01.8]} 47... Bf3 {[%clk 0:00:21.5]} 48. Ng3+
{[%clk 0:00:01.5]} 48... Kf4 {[%clk 0:00:19.7]} 49. Nxe2+ {[%clk 0:00:02.4]}
49... Bxe2 {[%clk 0:00:20.6]} 50. Rd6 {[%clk 0:00:03]} 50... Na4 {[%clk
0:00:20.7]} 51. Rxa6 {[%clk 0:00:03.1]} 51... Nxb2 {[%clk 0:00:21.3]} 52. Rb6
{[%clk 0:00:03.8]} 52... c3 {[%clk 0:00:21.7]} 53. Rc6 {[%clk 0:00:04.3]} 53...
Bc4 {[%clk 0:00:21.9]} 54. Kf2 {[%clk 0:00:04.5]} 54... c2 {[%clk 0:00:22.4]}
55. Rf6+ {[%clk 0:00:04.7]} 55... Ke5 {[%clk 0:00:22.4]} 56. Rg6 {[%clk
0:00:02.3]} 56... c1=Q {[%clk 0:00:22.6]} 0-1

[Event "*** Titled Tuesday Blitz"]
[Site "Chess.com"]
[Date "2021.02.09"]
[Round "2"]
[White "eljanov"]
[Black "Angel_Hranitel_37"]
[Result "1-0"]
[WhiteElo "2917"]
[BlackElo "2468"]
[TimeControl "180+1"]
[EndTime "10:19:02 PST"]
[Termination "eljanov won by checkmate"]

1. e4 {[%clk 0:03:00.9]} 1... c5 {[%clk 0:02:58.5]} 2. Nf3 {[%clk 0:03:00]} 2...
e6 {[%clk 0:02:58.9]} 3. d4 {[%clk 0:02:59.7]} 3... cxd4 {[%clk 0:02:59.8]} 4.
Nxd4 {[%clk 0:03:00.6]} 4... Nf6 {[%clk 0:02:59.6]} 5. Nc3 {[%clk 0:03:00.5]}
5... Nc6 {[%clk 0:03:00.1]} 6. Ndb5 {[%clk 0:02:55.2]} 6... Bc5 {[%clk
0:02:58.8]} 7. Bf4 {[%clk 0:02:47.7]} 7... O-O {[%clk 0:02:57.9]} 8. Bc7 {[%clk
0:02:47.3]} 8... Qe7 {[%clk 0:02:58.2]} 9. Bd6 {[%clk 0:02:47.3]} 9... Bxd6
{[%clk 0:02:58.8]} 10. Qxd6 {[%clk 0:02:47.1]} 10... Qd8 {[%clk 0:02:59.6]} 11.
O-O-O {[%clk 0:02:43.5]} 11... a6 {[%clk 0:02:59.1]} 12. Nd4 {[%clk 0:02:43]}
12... Ne7 {[%clk 0:02:58.6]} 13. f3 {[%clk 0:02:37.9]} 13... b5 {[%clk
0:02:56.1]} 14. h4 {[%clk 0:02:36.9]} 14... Bb7 {[%clk 0:02:54.8]} 15. a3 {[%clk
0:02:34.3]} 15... Ne8 {[%clk 0:02:52.6]} 16. Qf4 {[%clk 0:02:29.7]} 16... Rc8
{[%clk 0:02:45]} 17. g4 {[%clk 0:02:26.5]} 17... Qb6 {[%clk 0:02:06.8]} 18. Qd2
{[%clk 0:02:16.3]} 18... d5 {[%clk 0:02:02.1]} 19. e5 {[%clk 0:02:10.2]} 19...
Nc6 {[%clk 0:01:26.3]} 20. f4 {[%clk 0:02:02.1]} 20... b4 {[%clk 0:00:35.7]} 21.
Na4 {[%clk 0:01:57.3]} 21... Qa5 {[%clk 0:00:28.9]} 22. Nxc6 {[%clk 0:01:36.2]}
22... Bxc6 {[%clk 0:00:27.7]} 23. b3 {[%clk 0:01:36.8]} 23... Bxa4 {[%clk
0:00:20]} 24. axb4 {[%clk 0:01:36.2]} 24... Qb6 {[%clk 0:00:13.6]} 25. bxa4
{[%clk 0:01:36.4]} 25... d4 {[%clk 0:00:08.4]} 26. Qxd4 {[%clk 0:01:29.6]} 26...
Qc6 {[%clk 0:00:09]} 27. Rh2 {[%clk 0:01:30.2]} 27... Qxa4 {[%clk 0:00:09.6]}
28. Kb2 {[%clk 0:01:19.2]} 28... Nc7 {[%clk 0:00:10.2]} 29. Ra1 {[%clk
0:01:19.7]} 29... Qc6 {[%clk 0:00:10.4]} 30. Qd6 {[%clk 0:01:15.7]} 30... Qf3
{[%clk 0:00:11.1]} 31. Qd2 {[%clk 0:01:03.5]} 31... Nd5 {[%clk 0:00:11.3]} 32.
Ra3 {[%clk 0:01:02]} 32... Qxg4 {[%clk 0:00:10.8]} 33. Bxa6 {[%clk 0:00:58.6]}
33... Rb8 {[%clk 0:00:10]} 34. b5 {[%clk 0:00:59.1]} 34... Rb6 {[%clk
0:00:09.9]} 35. c4 {[%clk 0:00:54.3]} 35... Nxf4 {[%clk 0:00:07.9]} 36. c5
{[%clk 0:00:54.3]} 36... Rbb8 {[%clk 0:00:06.7]} 37. c6 {[%clk 0:00:37.2]} 37...
Rfd8 {[%clk 0:00:07]} 38. c7 {[%clk 0:00:33]} 38... Rxd2+ {[%clk 0:00:06.5]} 39.
Rxd2 {[%clk 0:00:33.9]} 39... Rf8 {[%clk 0:00:04.3]} 40. Rc3 {[%clk 0:00:33.7]}
40... Nd5 {[%clk 0:00:04]} 41. Rxd5 {[%clk 0:00:33.7]} 41... exd5 {[%clk
0:00:04.9]} 42. c8=Q {[%clk 0:00:34.3]} 42... Qe2+ {[%clk 0:00:03.1]} 43. Ka3
{[%clk 0:00:34.1]} 43... d4 {[%clk 0:00:03.8]} 44. Qc4 {[%clk 0:00:28.7]} 44...
Qxe5 {[%clk 0:00:03.2]} 45. Rd3 {[%clk 0:00:28.7]} 45... Rd8 {[%clk 0:00:03.6]}
46. Kb3 {[%clk 0:00:28.2]} 46... g5 {[%clk 0:00:03.1]} 47. hxg5 {[%clk
0:00:27.6]} 47... Qe1 {[%clk 0:00:02.9]} 48. Qc2 {[%clk 0:00:21.7]} 48... Qa1
{[%clk 0:00:02.6]} 49. Rh3 {[%clk 0:00:18.7]} 49... Qa5 {[%clk 0:00:02.3]} 50.
Qxh7+ {[%clk 0:00:18.2]} 50... Kf8 {[%clk 0:00:03.2]} 51. Qh8+ {[%clk
0:00:18.3]} 51... Ke7 {[%clk 0:00:04.1]} 52. Qf6+ {[%clk 0:00:18.7]} 52... Kd7
{[%clk 0:00:04.3]} 53. Qxf7+ {[%clk 0:00:19]} 53... Kd6 {[%clk 0:00:04.1]} 54.
Rh6+ {[%clk 0:00:18.9]} 54... Kc5 {[%clk 0:00:04.1]} 55. Qc4# {[%clk 0:00:18.9]}
1-0

[Event "*** Titled Tuesday Blitz"]
[Site "Chess.com"]
[Date "2021.02.09"]
[Round "2"]
[White "poppy73"]
[Black "Azde"]
[Result "1-0"]
[WhiteElo "2229"]
[BlackElo "2408"]
[TimeControl "180+1"]
[EndTime "10:19:02 PST"]
[Termination "poppy73 won by resignation"]

1. e4 {[%clk 0:03:00.9]} 1... c6 {[%clk 0:02:59.4]} 2. Nc3 {[%clk 0:02:59.2]}
2... d5 {[%clk 0:03:00.3]} 3. Nf3 {[%clk 0:02:58.3]} 3... dxe4 {[%clk
0:03:00.5]} 4. Nxe4 {[%clk 0:02:57.7]} 4... Nf6 {[%clk 0:03:01.1]} 5. Qe2 {[%clk
0:02:56]} 5... Nxe4 {[%clk 0:02:59.4]} 6. Qxe4 {[%clk 0:02:56.6]} 6... Qd5
{[%clk 0:02:59.9]} 7. Qh4 {[%clk 0:02:55.2]} 7... Bf5 {[%clk 0:02:55.9]} 8. Bc4
{[%clk 0:02:44.5]} 8... Qd8 {[%clk 0:02:41.6]} 9. Ne5 {[%clk 0:02:19.4]} 9...
Bg6 {[%clk 0:02:18.3]} 10. Nxg6 {[%clk 0:01:55.6]} 10... fxg6 {[%clk 0:02:19.2]}
11. Qf4 {[%clk 0:01:38.8]} 11... Qd6 {[%clk 0:02:17.5]} 12. Qf7+ {[%clk
0:01:30.9]} 12... Kd8 {[%clk 0:02:17.1]} 13. O-O {[%clk 0:01:27.8]} 13... Qf6
{[%clk 0:02:15.7]} 14. d4 {[%clk 0:01:20.3]} 14... Nd7 {[%clk 0:02:10.5]} 15.
Re1 {[%clk 0:01:08]} 15... a5 {[%clk 0:02:00.1]} 16. Qe6 {[%clk 0:01:01.3]}
16... Qxe6 {[%clk 0:01:50.8]} 17. Bxe6 {[%clk 0:01:01.1]} 17... Nf6 {[%clk
0:01:49.5]} 18. Bf4 {[%clk 0:00:59.4]} 18... h6 {[%clk 0:01:33.7]} 19. Rad1
{[%clk 0:00:49.2]} 19... g5 {[%clk 0:01:33.2]} 20. Be5 {[%clk 0:00:44.9]} 20...
h5 {[%clk 0:00:48.5]} 21. d5 {[%clk 0:00:34.6]} 21... Nxd5 {[%clk 0:00:37.2]}
22. c4 {[%clk 0:00:30.3]} 22... Rh6 {[%clk 0:00:31.5]} 23. cxd5 {[%clk
0:00:27.3]} 23... c5 {[%clk 0:00:31.9]} 24. Rc1 {[%clk 0:00:14.9]} 24... b6
{[%clk 0:00:31.8]} 25. a4 {[%clk 0:00:13.5]} 25... Ra7 {[%clk 0:00:22.6]} 26. h3
{[%clk 0:00:12.7]} 26... Rg6 {[%clk 0:00:22]} 27. Bf5 {[%clk 0:00:11.7]} 27...
Rh6 {[%clk 0:00:21.9]} 28. Rcd1 {[%clk 0:00:10]} 28... g6 {[%clk 0:00:17.5]} 29.
Be6 {[%clk 0:00:10]} 29... Rh7 {[%clk 0:00:17.5]} 30. d6 {[%clk 0:00:09.7]}
30... exd6 {[%clk 0:00:15.9]} 31. Bxd6 {[%clk 0:00:09.8]} 31... Bxd6 {[%clk
0:00:16.1]} 32. Rxd6+ {[%clk 0:00:09.9]} 32... Kc7 {[%clk 0:00:17]} 33. Red1
{[%clk 0:00:08.8]} 33... Ra8 {[%clk 0:00:12.3]} 34. Rd7+ {[%clk 0:00:04.6]}
34... Rxd7 {[%clk 0:00:12.5]} 35. Rxd7+ {[%clk 0:00:05.5]} 35... Kc6 {[%clk
0:00:13.2]} 36. Rg7 {[%clk 0:00:04.3]} 36... Kd6 {[%clk 0:00:07.6]} 37. Rxg6
{[%clk 0:00:04.3]} 37... Ke5 {[%clk 0:00:07.3]} 38. Bc4 {[%clk 0:00:03.6]} 38...
Kf5 {[%clk 0:00:05.6]} 39. Rxb6 {[%clk 0:00:03.5]} 39... Rd8 {[%clk 0:00:03.6]}
40. b3 {[%clk 0:00:03.4]} 40... Rd1+ {[%clk 0:00:03.4]} 41. Kh2 {[%clk
0:00:04.1]} 41... Rd2 {[%clk 0:00:02.9]} 42. f3 {[%clk 0:00:04.4]} 42... h4
{[%clk 0:00:02.7]} 43. Rb5 {[%clk 0:00:04.5]} 43... Kf4 {[%clk 0:00:02.7]} 44.
Rxc5 {[%clk 0:00:04.8]} 44... Rb2 {[%clk 0:00:02.3]} 45. Rxa5 {[%clk 0:00:04.7]}
45... Rc2 {[%clk 0:00:01.7]} 46. Rc5 {[%clk 0:00:04.3]} 46... Rb2 {[%clk
0:00:01.9]} 47. Rd5 {[%clk 0:00:04.4]} 47... Ra2 {[%clk 0:00:02.2]} 48. a5
{[%clk 0:00:04.7]} 48... Ke3 {[%clk 0:00:03]} 49. b4 {[%clk 0:00:04.5]} 49...
Kf2 {[%clk 0:00:03.5]} 50. Bxa2 {[%clk 0:00:04]} 1-0